fUST/lending_fUST_20241209
["ID","MTS","AMOUNT","RATE_DAILY","PERIOD"]
[344722722,1733742644046,-151.0,0.00024995,7]
[344722723,1733742644055,-151.0,0.00024995,7]
[344722724,1733742644064,-255.891615,0.00024995,7]
[344722725,1733742644074,-255.891615,0.00024995,7]
[344722726,1733742644084,-189.557997,0.00024995,7]
[344722727,1733742644094,-151.0,0.00024995,7]
[344722728,1733742644107,-189.557997,0.00024995,7]
[344722729,1733742644117,-151.0,0.00024995,7]
[344722730,1733742644126,-262.26604897,0.00024999,2]
[344722731,1733742644136,-305.4660189,0.00024999,2]
[344722732,1733742644147,-299.05615907,0.00024999,2]
[344722733,1733742644156,-316.44234845,0.00024999,2]
[344722734,1733742644165,-500.0,0.00024999,2]
[344722735,1733742644175,-151.0,0.00024999,7]
[344722736,1733742644185,-151.0,0.00024999,7]
[344722737,1733742644194,-151.0,0.00024999,7]
[344722738,1733742644203,-151.0,0.00024999,7]
[344722739,1733742644213,-1024.428094,0.00024999,7]
[344722740,1733742644223,-1024.428094,0.00024999,7]
[344722741,1733742644232,-500.0,0.00024999,2]
[344722743,1733742644242,-151.0,0.00024999,7]
[344722744,1733742644252,-151.0,0.00024999,7]
[344722745,1733742644261,-134260.34425384,0.00025,2]
[344722746,1733742644270,-183.72673379,0.00025,2]
[344722747,1733742644280,-286870.6119488,0.00025,10]
[344722755,1733742646229,-903.1292698,0.00023055,2]
[344722756,1733742646239,-27171.87027208,0.00025,10]
[344723684,1733743424935,342.457147,0.00013973,2]
[344723700,1733743679166,229.542853,0.00016,2]
[344723701,1733743679196,9029.41366667,0.00016,2]
[344723703,1733743700202,399.09960817,0.000125,2]
[344723705,1733743721617,171.25860221,0.00015,2]
[344723748,1733743832380,-12.72733284,0.0001999,2]
[344723749,1733743832397,-4467.450042,0.0001999,2]
[344723750,1733743832409,-1690.14778193,0.0001999,2]
[344723751,1733743832418,-2402.11510505,0.00020377,2]
[344723752,1733743832427,-342.457147,0.00020447,2]
[344723753,1733743832436,-185.594808,0.00022252,2]
[344723755,1733743832447,-169.735425,0.00022704,2]
[344723757,1733743832457,-243.28766005,0.00023,2]
[344723759,1733743832471,-167.7,0.00023057,3]
[344723761,1733743832480,-255.477969,0.00023079,2]
[344723763,1733743832490,-300.0,0.00023136,2]
[344723765,1733743832499,-300.0,0.00023136,2]
[344723766,1733743832510,-2629.83514785,0.00023138,2]
[344723768,1733743832520,-192.0,0.00023288,2]
[344723770,1733743832530,-1221.7737894,0.0002337,2]
[344723771,1733743832542,-175.054334,0.00023669,2]
[344723772,1733743832553,-168.852197,0.00023748,2]
[344723773,1733743832563,-367.921,0.0002375,2]
[344723774,1733743832573,-167.7,0.00023861,3]
[344723775,1733743832584,-168.852197,0.00023866,2]
[344723776,1733743832599,-500.0000019,0.00023878,2]
[344723777,1733743832609,-2338.045,0.00023882,2]
[344723778,1733743832618,-182.29,0.00023884,2]
[344723779,1733743832628,-5284.2634233,0.00023894,2]
[344723780,1733743832638,-192.0,0.00024149,2]
[344723781,1733743832647,-305.6452758,0.00024384,2]
[344723782,1733743832657,-32289.4967725,0.000245,2]
[344723783,1733743832733,-2816.05094787,0.000245,2]
[344723805,1733743838278,-183.58623428,0.00024499,2]
[344723806,1733743838288,-563.82621323,0.00024499,2]
[344723807,1733743838298,-221.50964392,0.00024499,2]
[344723808,1733743838307,-2.63790835,0.00024499,2]
[344723809,1733743838319,-206.701403,0.00024499,2]
[344723810,1733743838328,-500.0,0.00024499,2]
[344723811,1733743838338,-500.0,0.00024499,2]
[344723812,1733743838347,-500.0,0.00024499,2]
[344723813,1733743838363,-500.0,0.00024499,2]
[344723814,1733743838372,-300.16675937,0.00024499,2]
[344723815,1733743838382,-500.0,0.00024499,2]
[344723816,1733743838392,-500.0,0.00024499,2]
[344723817,1733743838401,-500.0,0.00024499,2]
[344723818,1733743838411,-500.0,0.00024499,2]
[344723819,1733743838421,-500.0,0.00024499,2]
[344723820,1733743838430,-500.0,0.00024499,2]
[344723821,1733743838439,-500.0,0.00024499,2]
[344723822,1733743838449,-500.0,0.00024499,2]
[344723823,1733743838458,-500.0,0.00024499,2]
[344723825,1733743838471,-336.39314585,0.00024499,2]
[344723827,1733743838480,-500.0,0.00024499,2]
[344723829,1733743838491,-500.0,0.00024499,2]
[344723831,1733743838500,-220.00638604,0.00024499,2]
[344723832,1733743838510,-350.0,0.00024499,2]
[344723834,1733743838519,-500.0,0.00024499,2]
[344723837,1733743838528,-500.0,0.00024499,2]
[344723839,1733743838541,-500.0,0.00024499,2]
[344723841,1733743838552,-500.0,0.00024499,2]
[344723842,1733743838562,-500.0,0.00024499,2]
[344723843,1733743838572,-500.0,0.00024499,2]
[344723844,1733743838581,-500.0,0.00024499,2]
[344723845,1733743838590,-500.0,0.00024499,2]
[344723846,1733743838599,-500.0,0.00024499,2]
[344723847,1733743838611,-500.0,0.00024499,2]
[344723848,1733743838620,-500.0,0.00024499,2]
[344723849,1733743838630,-500.0,0.00024499,2]
[344723850,1733743838639,-500.0,0.00024499,2]
[344723851,1733743838648,-500.0,0.00024499,2]
[344723852,1733743838658,-500.0,0.00024499,2]
[344723853,1733743838667,-500.0,0.00024499,2]
[344723854,1733743838676,-500.0,0.00024499,2]
[344723855,1733743838686,-414.87236122,0.00024499,2]
[344723856,1733743838698,-85.12763878,0.00024499,2]
[344723857,1733743838708,-500.0,0.00024499,2]
[344723858,1733743838717,-500.0,0.00024499,2]
[344723859,1733743838726,-500.0,0.00024499,2]
[344723860,1733743838735,-29978.75977521,0.000245,2]
[344723861,1733743838747,-4015.76316259,0.000245,2]
[344723868,1733743840483,-923.92736304,0.000245,2]
[344723869,1733743840497,-49175.87267798,0.000245,2]
[344723870,1733743840509,-29608.26747657,0.000245,2]
[344723871,1733743840519,-185.4877667,0.00024564,2]
[344723872,1733743840528,-167.7,0.00024664,4]
[344723873,1733743840540,-185.48776669,0.00024676,2]
[344723874,1733743840550,-247.2838105,0.0002475,2]
[344723875,1733743840559,-185.000132,0.00024782,2]
[344723876,1733743840569,-185.48776669,0.00024788,2]
[344723877,1733743840579,-2260.30881011,0.00024873,2]
[344723878,1733743840590,-10439.13626864,0.00024874,2]
[344723879,1733743840599,-404.19921357,0.000249,2]
[344723880,1733743840611,-160.0,0.00024932,2]
[344723881,1733743840621,-633.60390027,0.00024973,2]
[344723882,1733743840630,-500.0,0.00024973,2]
[344723883,1733743840639,-154.93814952,0.00024973,2]
[344723884,1733743840649,-500.0,0.00024973,2]
[344723885,1733743840658,-259.89248991,0.00024973,2]
[344723886,1733743840668,-500.0,0.00024973,2]
[344723887,1733743840677,-500.0,0.00024973,2]
[344723888,1733743840686,-208.28,0.0002498,8]
[344723889,1733743840695,-1876.92644883,0.00025,2]
[344723902,1733743843726,-1889.33617904,0.00024399,2]
[344723903,1733743843735,-575.0439048,0.000249,2]
[344723904,1733743843745,-185.48776669,0.000249,2]
[344723905,1733743843755,-65253.24567809,0.00025,2]
[344723906,1733743843764,-183.72673378,0.00025,2]
[344723907,1733743843774,-585748.31661524,0.00025,10]
[344723908,1733743843789,-256.77941495,0.00025,10]
[344723911,1733743846447,-1806.2585396,0.00024399,2]
[344723912,1733743846459,-85914.96529366,0.00025,10]
[344723913,1733743846473,-45054.51769261,0.00025,10]
[344723970,1733744428254,344.505541,0.00013973,2]
[344724071,1733745032632,-344.505541,0.00020447,2]
[344724072,1733745032641,-180.46,0.00021648,2]
[344724073,1733745032651,-218.6332437,0.00023029,2]
[344724074,1733745032660,-173.510313,0.00023049,2]
[344724075,1733745032670,-484.8985722,0.00023146,2]
[344724076,1733745032679,-1623.83769229,0.00023191,2]
[344724077,1733745032690,-859.13793941,0.00023191,2]
[344724078,1733745032699,-192.0,0.00023288,2]
[344724079,1733745032708,-5572.2364688,0.0002334,2]
[344724080,1733745032718,-385.4714249,0.00023428,2]
[344724081,1733745032727,-300.0,0.00023565,2]
[344724082,1733745032736,-433.876546,0.00023568,2]
[344724083,1733745032745,-352.728,0.0002375,2]
[344724084,1733745032755,-2629.83514785,0.00023768,2]
[344724085,1733745032763,-3617.40736939,0.00023882,2]
[344724086,1733745032776,-2797.50120001,0.00023882,2]
[344724087,1733745032785,-2383.0979479,0.0002396,2]
[344724088,1733745032795,-153.0,0.00024384,2]
[344724089,1733745032804,-153.0,0.00024384,2]
[344724090,1733745032813,-153.0,0.00024384,2]
[344724091,1733745032823,-153.0,0.00024384,2]
[344724092,1733745032834,-153.0,0.00024384,2]
[344724093,1733745032844,-150.0,0.00024494,2]
[344724094,1733745032853,-150.0,0.00024494,2]
[344724095,1733745032862,-618.99088672,0.000249,2]
[344724096,1733745032872,-160.0,0.00024932,2]
[344724097,1733745032881,-157.43,0.00024963,2]
[344724098,1733745032891,-500.0,0.00024973,2]
[344724099,1733745032900,-500.0,0.00024973,2]
[344724100,1733745032910,-163.76308921,0.00024973,2]
[344724101,1733745032920,-500.0,0.00024973,2]
[344724102,1733745032929,-203.26122741,0.00024998,2]
[344724103,1733745032938,-394.67834926,0.00024998,2]
[344724104,1733745032949,-217.83561944,0.00024998,2]
[344724105,1733745032959,-229.28898463,0.00024998,2]
[344724106,1733745032968,-500.0,0.00024998,2]
[344724107,1733745032977,-500.0,0.00024998,2]
[344724108,1733745032987,-500.0,0.00024998,2]
[344724109,1733745032996,-392.20454936,0.00024998,2]
[344724110,1733745033006,-500.0,0.00024998,2]
[344724111,1733745033016,-500.0,0.00024998,2]
[344724112,1733745033029,-500.0,0.00024998,2]
[344724113,1733745033038,-500.0,0.00024998,2]
[344724114,1733745033048,-526.05593945,0.00024998,2]
[344724115,1733745033058,-500.0,0.00024998,2]
[344724116,1733745033067,-500.0,0.00024998,2]
[344724117,1733745033077,-500.0,0.00024998,2]
[344724118,1733745033086,-500.0,0.00024998,2]
[344724119,1733745033095,-500.0,0.00024998,2]
[344724120,1733745033105,-500.0,0.00024998,2]
[344724121,1733745033235,-500.0,0.00024998,2]
[344724122,1733745033245,-500.0,0.00024998,2]
[344724123,1733745033255,-500.0,0.00024998,2]
[344724124,1733745033264,-500.0,0.00024998,2]
[344724125,1733745033277,-500.0,0.00024998,2]
[344724126,1733745033286,-472.0006386,0.00024998,2]
[344724127,1733745033296,-500.0,0.00024998,2]
[344724128,1733745033306,-500.0,0.00024998,2]
[344724129,1733745033315,-500.0,0.00024998,2]
[344724130,1733745033325,-500.0,0.00024998,2]
[344724131,1733745033335,-500.0,0.00024998,2]
[344724132,1733745033345,-500.0,0.00024998,2]
[344724133,1733745033354,-500.0,0.00024998,2]
[344724134,1733745033364,-500.0,0.00024998,2]
[344724135,1733745033373,-500.0,0.00024998,2]
[344724136,1733745033382,-500.0,0.00024998,2]
[344724137,1733745033393,-500.0,0.00024998,2]
[344724138,1733745033403,-500.0,0.00024998,2]
[344724139,1733745033412,-500.0,0.00024998,2]
[344724140,1733745033422,-500.0,0.00024998,2]
[344724141,1733745033432,-500.0,0.00024998,2]
[344724142,1733745033442,-500.0,0.00024998,2]
[344724143,1733745033452,-500.0,0.00024998,2]
[344724144,1733745033462,-500.0,0.00024998,2]
[344724145,1733745033472,-500.0,0.00024998,2]
[344724146,1733745033481,-500.0,0.00024998,2]
[344724147,1733745033491,-500.0,0.00024998,2]
[344724148,1733745033501,-500.0,0.00024998,2]
[344724149,1733745033510,-601.52528634,0.00024998,2]
[344724150,1733745033520,-500.0,0.00024998,2]
[344724151,1733745033529,-500.0,0.00024998,2]
[344724152,1733745033539,-500.0,0.00024998,2]
[344724153,1733745033549,-500.0,0.00024998,2]
[344724154,1733745033558,-500.0,0.00024998,2]
[344724155,1733745033567,-500.0,0.00024998,2]
[344724156,1733745033577,-500.0,0.00024998,2]
[344724157,1733745033587,-208.281,0.00024998,8]
[344724158,1733745033596,-152.4849336,0.00024998,2]
[344724159,1733745033606,-500.0,0.00024998,2]
[344724160,1733745033615,-500.0,0.00024998,2]
[344724161,1733745033624,-500.0,0.00024998,2]
[344724162,1733745033634,-500.0,0.00024998,2]
[344724163,1733745033644,-500.0,0.00024998,2]
[344724164,1733745033653,-500.0,0.00024998,2]
[344724165,1733745033662,-500.0,0.00024998,2]
[344724166,1733745033672,-500.0,0.00024998,2]
[344724167,1733745033681,-500.0,0.00024998,2]
[344724168,1733745033691,-500.0,0.00024998,2]
[344724169,1733745033700,-500.0,0.00024998,2]
[344724170,1733745033710,-200.0,0.00024998,2]
[344724171,1733745033719,-500.0,0.00024998,2]
[344724172,1733745033729,-500.0,0.00024998,2]
[344724173,1733745033739,-500.0,0.00024998,2]
[344724174,1733745033748,-166174.62088344,0.00024999,2]
[344724175,1733745033758,-620.11621329,0.00024999,2]
[344724176,1733745033767,-63745.59952145,0.00024999,10]
[344724210,1733745038535,-35348.05527721,0.00024999,10]
[344724219,1733745038613,-5789.61760586,0.00024999,10]
[344724221,1733745038625,-31388.58593772,0.00024999,10]
[344724223,1733745038635,-451.2,0.00024999,10]
[344724226,1733745038647,-13004.70463317,0.00024999,10]
[344724228,1733745038658,-15698.37774332,0.00024999,10]
[344724743,1733745044161,-6058.2158008,0.00024999,10]
[344724745,1733745044173,-131351.14453232,0.00024999,10]
[344724747,1733745044184,-3850.0,0.00024999,10]
[344724749,1733745044196,-6316.68308455,0.00024999,10]
[344725207,1733745048253,-15359.99999999,0.00024999,10]
[344728545,1733745302840,343.230779,0.00013973,2]
[344728546,1733745473041,1000.0,0.00030182,30]
[344728547,1733745513006,1000.0,0.00030182,30]
[344728548,1733745514493,1000.0,0.00030182,30]
[344728549,1733745515240,1000.0,0.00030182,30]
[344728550,1733745515889,1000.0,0.00030182,30]
[344728551,1733745571464,1000.0,0.00030182,30]
[344728552,1733745572371,1000.0,0.00030182,30]
[344728553,1733745573230,1000.0,0.00030182,30]
[344728554,1733745574082,1000.0,0.00030182,30]
[344728555,1733745574851,1000.0,0.00030182,30]
[344728556,1733745575684,1000.0,0.00030182,30]
[344728557,1733745576434,1000.0,0.00030182,30]
[344728558,1733745591513,-150000.0,0.00024999,10]
[344728560,1733745712647,-1627.26,0.00025,14]
[344728561,1733745712673,-7078.39718536,0.00025,11]
[344728562,1733745749348,1464.53,0.00025,14]
[344728563,1733745768442,150.0,0.00030177,30]
[344728565,1733745946671,1318.08,0.00025,14]
[344728567,1733746143196,1186.27,0.00025,14]
[344728619,1733746235931,-2100.1092026,0.00020347,2]
[344728621,1733746235941,-343.230779,0.00020447,2]
[344728623,1733746235951,-169.735425,0.00022276,2]
[344728625,1733746235960,-618.880073,0.0002256,2]
[344728627,1733746235970,-192.0,0.00023288,2]
[344728629,1733746235979,-300.0,0.00023499,2]
[344728631,1733746235988,-300.0,0.00023499,2]
[344728633,1733746235998,-3000.0,0.000235,2]
[344728635,1733746236008,-3000.0,0.0002351,2]
[344728636,1733746236017,-3000.0,0.0002352,2]
[344728639,1733746236027,-3000.0,0.0002353,2]
[344728641,1733746236036,-3000.0,0.0002354,2]
[344728643,1733746236046,-3000.0,0.0002355,2]
[344728645,1733746236055,-3000.0,0.0002356,2]
[344728647,1733746236064,-153.0,0.00023562,2]
[344728649,1733746236073,-3000.0,0.0002357,2]
[344728651,1733746236083,-3000.0,0.0002358,2]
[344728652,1733746236092,-3000.0,0.0002359,2]
[344728654,1733746236101,-3000.0,0.000236,2]
[344728656,1733746236111,-3000.0,0.0002361,2]
[344728659,1733746236120,-3000.0,0.0002362,2]
[344728671,1733746236237,-3000.0,0.0002363,2]
[344728673,1733746236248,-3000.0,0.0002364,2]
[344728675,1733746236258,-2582.45265508,0.0002365,2]
[344728678,1733746236275,-417.54734492,0.0002365,2]
[344728680,1733746236285,-2629.83514785,0.0002365,2]
[344728682,1733746236295,-5062.834377,0.0002366,2]
[344728684,1733746236304,-355.152,0.0002375,2]
[344728686,1733746236313,-153.0,0.00023978,2]
[344728688,1733746236323,-185.000132,0.00024089,2]
[344728690,1733746236332,-153.0,0.00024178,2]
[344728692,1733746236342,-153.0,0.00024178,2]
[344728694,1733746236352,-153.0,0.00024178,2]
[344728695,1733746236360,-4953.25401838,0.000242,2]
[344728697,1733746236370,-4953.25401838,0.000243,2]
[344728699,1733746236380,-153.0,0.00024384,2]
[344728701,1733746236390,-153.0,0.00024384,2]
[344728704,1733746236404,-153.0,0.00024384,2]
[344728705,1733746236414,-153.0,0.00024384,2]
[344728707,1733746236424,-153.0,0.00024384,2]
[344728709,1733746236434,-153.0,0.00024384,2]
[344728711,1733746236443,-9953.25401838,0.000244,2]
[344728714,1733746236453,-608.00007096,0.00024499,2]
[344728716,1733746236463,-500.0,0.00024499,2]
[344728718,1733746236472,-500.0,0.00024499,2]
[344728720,1733746236481,-500.0,0.00024499,2]
[344728721,1733746236491,-500.0,0.00024499,2]
[344728724,1733746236500,-500.0,0.00024499,2]
[344728726,1733746236510,-500.0,0.00024499,2]
[344728727,1733746236519,-330.15252863,0.00024499,2]
[344728729,1733746236529,-9953.25401838,0.000245,2]
[344728731,1733746236539,-9953.25401838,0.000246,2]
[344728733,1733746236549,-280.57588973,0.000246,2]
[344728735,1733746236558,-3061.81753665,0.00024661,2]
[344728737,1733746236568,-9953.25401838,0.000247,2]
[344728740,1733746236578,-9953.25401838,0.000248,2]
[344728741,1733746236587,-380.12298673,0.000249,2]
[344728743,1733746236596,-648.3980331,0.000249,2]
[344728745,1733746236606,-500.0,0.00024973,2]
[344728747,1733746236616,-500.0,0.00024973,2]
[344728750,1733746236625,-500.0,0.00024973,2]
[344728751,1733746236635,-500.64442974,0.00024973,2]
[344728753,1733746236644,-500.0,0.00024973,2]
[344728755,1733746236657,-350.94683171,0.00024973,2]
[344728757,1733746236667,-500.65408589,0.00024973,2]
[344728760,1733746236677,-220.12877861,0.00024973,2]
[344728762,1733746236687,-503.03255594,0.00024973,2]
[344728764,1733746236697,-1016.82,0.00024989,2]
[344728766,1733746236707,-1000.0,0.00024989,2]
[344728768,1733746236716,-1000.0,0.00024989,2]
[344728770,1733746236725,-219113.00519824,0.00024999,10]
[344728772,1733746236741,-611.61416588,0.00024999,10]
[344728774,1733746236753,-916.86182608,0.00024999,10]
[344728776,1733746236764,-1960.4,0.00024999,10]
[344728778,1733746236775,-7945.0601293,0.00024999,10]
[344728780,1733746236787,-566.41715873,0.00024999,10]
[344728889,1733746238708,-253688.18631493,0.00024999,10]
[344728891,1733746238718,-60309.43543528,0.00025,2]
[344728893,1733746238730,-101741.7896609,0.00025,2]
[344728898,1733746238766,-20617.3661394,0.00025,2]
[344728900,1733746238776,-620.11621329,0.00025,2]
[344728902,1733746238786,-16725.21353638,0.00025,10]
[344728919,1733746241653,428.5,0.00030177,30]
[344728960,1733746242342,-19677.79618685,0.00025,10]
[344729083,1733746243946,-104784.8617294,0.00025,10]
[344729084,1733746244002,-3455.91923316,0.00025,10]
[344729092,1733746244143,-4782.28083261,0.00025,10]
[344729094,1733746244161,-3861.1,0.00025,10]
[344729344,1733746246779,-160.0,0.00024932,2]
[344729346,1733746246790,-4755.05,0.00025,10]
[344729352,1733746246834,-500.0,0.00025,10]
[344729422,1733746257594,667.38878154,0.00025,11]
[344729423,1733746340011,1067.64,0.00025,14]
[344729424,1733746354297,5000.0,0.00025,11]
[344729427,1733746362175,4346.07687701,0.00025,11]
[344729428,1733746363581,1326.8,0.00030233,30]
[344729432,1733746404047,152.0,0.00026,60]
[344729435,1733746478825,330.336561,0.00013973,2]
[344729438,1733746537125,960.88,0.00025,14]
[344729440,1733746733646,864.79,0.00025,14]
[344729441,1733746931506,778.31,0.00025,14]
[344729459,1733747128215,700.48,0.00025,14]
[344729464,1733747324203,700.48,0.00025,14]
[344729480,1733747394067,331.541952,0.00013973,2]
[344729506,1733747432073,-1191.65092557,0.00020347,2]
[344729507,1733747432085,-1438.18422228,0.00020347,2]
[344729508,1733747432096,-331.541952,0.00020447,2]
[344729509,1733747432106,-173.510313,0.00023446,2]
[344729510,1733747432115,-300.0,0.00023616,2]
[344729511,1733747432125,-300.0,0.00023616,2]
[344729512,1733747432133,-6204.74351272,0.00023617,2]
[344729513,1733747432147,-9013.67708098,0.00023617,2]
[344729514,1733747432157,-348.956,0.0002375,2]
[344729515,1733747432166,-192.0,0.0002382,2]
[344729516,1733747432176,-602.9127,0.00023962,2]
[344729517,1733747432185,-200.57088496,0.0002408,2]
[344729518,1733747432195,-191.5183688,0.0002475,2]
[344729519,1733747432205,-8374.42777813,0.00024843,2]
[344729520,1733747432215,-3395.96962458,0.00024873,2]
[344729522,1733747432224,-8457.65355158,0.000249,7]
[344729529,1733747432353,-665.73384138,0.000249,2]
[344729530,1733747432374,-372.21844301,0.00024973,2]
[344729531,1733747432384,-500.0,0.00024973,2]
[344729532,1733747432395,-500.0,0.00024973,2]
[344729533,1733747432404,-500.0,0.00024973,2]
[344729534,1733747432414,-500.0,0.00024973,2]
[344729535,1733747432423,-370.01694763,0.00024999,2]
[344729536,1733747432432,-160.50228924,0.00024999,2]
[344729537,1733747432442,-276.27484448,0.00024999,2]
[344729538,1733747432451,-180.775,0.00024999,8]
[344729539,1733747432461,-21051.43226299,0.00025,2]
[344729540,1733747432482,-655.9133545,0.00025,2]
[344729554,1733747437773,-588.26823525,0.00025,2]
[344729555,1733747437784,-336.5774975,0.00025,2]
[344729556,1733747437838,-77285.04150902,0.00025,2]
[344729557,1733747437847,-310.05810664,0.00025,2]
[344729558,1733747437856,-4831995.43840994,0.00025,10]
[344729559,1733747437868,-294731.60730381,0.00025,10]
[344729560,1733747437908,-2500.0,0.00025,10]
[344729561,1733747437920,-14816.96290219,0.00025,10]
[344729562,1733747437932,-1199.72462013,0.00025,10]
[344729563,1733747437943,-1613.84024414,0.00025,10]
[344729564,1733747437955,-496.3407641,0.00025,10]
[344729575,1733747439786,-500.0,0.00025,10]
[344729576,1733747439845,-1222.6,0.00025,10]
[344729578,1733747439856,-1196.85,0.00025,10]
[344729591,1733747442878,-401.30129321,0.00024999,2]
[344729592,1733747442890,-4519.19870679,0.00025,10]
[344729593,1733747443175,-12192.00000118,0.00025,10]
[344729597,1733747445825,-500.0,0.00024973,2]
[344729598,1733747445835,-393.96287859,0.00024999,2]
[344729599,1733747445844,-5084.07692141,0.00025,10]
[344729609,1733747520774,560.38,0.00025,14]
[344729620,1733747717955,504.35,0.00025,14]
[344729621,1733747914668,453.91,0.00025,14]
[344729627,1733748112793,408.52,0.00025,14]
[344729635,1733748309932,408.52,0.00025,14]
[344729637,1733748318223,307.470406,0.00013973,2]
[344729645,1733748505881,326.82,0.00025,14]
[344729679,1733748632070,-307.470406,0.00020447,2]
[344729680,1733748632080,-173.510313,0.00023001,2]
[344729681,1733748632090,-494.443564,0.0002325,2]
[344729682,1733748632100,-167.5637397,0.00023288,2]
[344729683,1733748632110,-186.2575567,0.00023562,2]
[344729684,1733748632122,-1796.55506877,0.0002365,2]
[344729685,1733748632138,-833.28007908,0.0002365,2]
[344729686,1733748632151,-169.735425,0.000237,2]
[344729687,1733748632161,-343.377,0.0002375,2]
[344729688,1733748632171,-300.0,0.00023973,2]
[344729689,1733748632180,-300.0,0.00023973,2]
[344729690,1733748632189,-5060.54767504,0.00023974,2]
[344729698,1733748638076,-19839.45232496,0.00023974,2]
[344729699,1733748638086,-191.5183688,0.0002475,2]
[344729700,1733748638095,-3263.85705739,0.00024873,2]
[344729701,1733748638105,-628.09835943,0.000249,2]
[344729702,1733748638114,-673.1185077,0.000249,2]
[344729703,1733748638123,-500.0,0.00024973,2]
[344729704,1733748638132,-193.39239114,0.00024999,2]
[344729705,1733748638142,-307.37966801,0.00024999,2]
[344729706,1733748638154,-500.0,0.00024999,2]
[344729707,1733748638163,-500.0,0.00024999,2]
[344729708,1733748638172,-168.78235561,0.00024999,2]
[344729709,1733748638181,-500.0,0.00024999,2]
[344729710,1733748638191,-500.0,0.00024999,2]
[344729712,1733748638200,-17649.48673208,0.00025,10]
[344729714,1733748638216,-294731.60730381,0.00025,10]
[344729715,1733748638228,-20064.43111186,0.00025,10]
[344729727,1733748639960,-1998.0,0.00025,10]
[344729794,1733748643849,-3583.450005,0.00025,10]
[344729795,1733748643861,-32464.25494213,0.00025,10]
[344729813,1733748646246,-4477.5983,0.00025,10]
[344729814,1733748646258,-20017.37009956,0.00025,10]
[344729819,1733748703755,294.13,0.00025,14]
[344729825,1733748899833,264.72,0.00025,14]
[344729841,1733749097836,238.25,0.00025,14]
[344729851,1733749223407,285.755844,0.00013973,2]
[344729854,1733749294353,214.42,0.00025,14]
[344729920,1733749490614,192.98,0.00025,14]
[344729936,1733749688301,173.68,0.00025,14]
[344729979,1733749835071,-300.0,0.00019999,2]
[344729980,1733749835080,-300.0,0.00019999,2]
[344729981,1733749835090,-3326.29296144,0.0002,2]
[344730011,1733749840169,-20224.28604323,0.0002,2]
[344730013,1733749840320,-3028.97073066,0.0002,2]
[344730014,1733749840332,-2262.59321419,0.0002,2]
[344730015,1733749840342,-285.755844,0.00020447,2]
[344730016,1733749840351,-420.0,0.00021777,2]
[344730017,1733749840362,-2855.87492519,0.00021899,2]
[344730018,1733749840371,-420.0,0.00021999,2]
[344730019,1733749840381,-169.735425,0.00022711,2]
[344730020,1733749840391,-343.715389,0.0002304,2]
[344730022,1733749840402,-1985.13285721,0.00023043,2]
[344730024,1733749840416,-870.74206795,0.00023043,2]
[344730026,1733749840426,-129.25793205,0.000235,2]
[344730053,1733749843799,-755.65021095,0.000235,2]
[344730054,1733749843809,-599.67599867,0.000235,2]
[344730082,1733749884408,156.32,0.00025,14]
[344730105,1733750081383,156.32,0.00025,14]
[344730106,1733750084312,277.072685,0.00013973,2]
[344730117,1733750278811,156.32,0.00025,14]
[344730118,1733750367904,138505.23356065,0.00030008,30]
[344730126,1733750476217,156.32,0.00025,14]